[Event "Slovakia Chess Open 2024"]
[Site "Modra"]
[Date "2024.03.03"]
[Round "4.4"]
[White "Kukla, Tomas"]
[Black "Banas, Kamil"]
[Result "0-1"]
[ECO "D55"]
[WhiteElo "1864"]
[BlackElo "2162"]
[Annotator "RC"]
[PlyCount "144"]
[EventDate "2024.02.29"]
[EventType "swiss"]
[EventCountry "SVK"]
[SourceTitle "playchess.com"]
[Source "ChessBase"]
[SourceQuality "1"]
[TimeControl "5400+30"]

1. d4 {[%emt 0:00:06]} d5 {[%emt 0:00:03]} 2. c4 {[%emt 0:00:19]} e6 {[%emt 0:00:05]} 3. Nf3 {[%emt 0:00:23]} Nf6 {[%emt 0:00:33]} 4. Nc3 {[%emt 0:00:11]} Be7 {[%emt 0:01:43]} 5. Bg5 {[%emt 0:01:32]} O-O {[%emt 0:00:21]} 6. e3 {[%emt 0:00:22]} h6 {[%emt 0:00:15]} 7. Bxf6 {[%emt 0:02:04]} Bxf6 {[%emt 0:02:05]} 8. Bd3 {[%emt 0:00:23]} dxc4 {[%emt 0:04:17]} 9. Bxc4 {[%emt 0:00:09]} b6 {[%emt 0:00:51]} 10. O-O {[%emt 0:01:53]} Bb7 {[%emt 0:01:18]} 11. Qe2 {[%emt 0:00:36]} Nd7 {[%emt 0:09:47]} 12. Rfd1 {[%emt 0:01:27]} Qc8 {[%emt 0:01:56]} 13. Rac1 {[%emt 0:03:31]} Rd8 {[%emt 0:01:56]} 14. d5 {[%emt 0:05:30]} Nf8 {[%emt 0:11:05]} 15. e4 {[%emt 0:04:43]} e5 {[%emt 0:06:39]} 16. Nb5 {[%emt 0:04:03]} a6 {[%emt 0:02:06]} 17. Nc3 {[%emt 0:02:03]} Rd6 {[%emt 0:02:08]} 18. Rc2 {[%emt 0:05:31]} g5 {[%emt 0:04:30]} 19. Ne1 {[%emt 0:04:42]} Ng6 {[%emt 0:00:47]} 20. Nd3 {[%emt 0:01:31]} Nf4 {[%emt 0:05:40]} 21. Nxf4 {[%emt 0:02:06]} gxf4 {[%emt 0:00:12]} 22. Qh5 {[%emt 0:01:31]} Bg7 {[%emt 0:00:55]} 23. Be2 {[%emt 0:00:34]} Rg6 {[%emt 0:03:35]} 24. h4 {[%emt 0:01:48]} Qe8 {[%emt 0:04:08]} 25. Kh2 {[%emt 0:05:30]} Qe7 {[%emt 0:07:21]} 26. Bg4 {[%emt 0:02:38]} Bc8 {[%emt 0:04:49]} 27. Bf5 {[%emt 0:02:27]} Rd6 {[%emt 0:00:23]} 28. Rdc1 {[%emt 0:04:39]} Bxf5 {[%emt 0:04:16]} 29. exf5 {[%emt 0:01:49]} e4 {[%emt 0:00:10]} 30. Ne2 {[%emt 0:02:02]} Qe5 {[%emt 0:00:59]} 31. g3 {[%emt 0:05:15]} Rxd5 {[%emt 0:02:54]} 32. Nxf4 {[%emt 0:03:10]} Qxf5 {[%emt 0:00:07]} 33. Qxf5 {[%emt 0:00:25]} Rxf5 {[%emt 0:00:31]} 34. b4 {[%emt 0:01:44]} Be5 {[%emt 0:00:24]} 35. Ng2 {[%emt 0:01:54]} Rf3 {[%emt 0:01:35]} 36. Re1 {[%emt 0:03:51]} f5 {[%emt 0:00:34]} 37. Re3 {[%emt 0:00:52]} Rxe3 {[%emt 0:02:55]} 38. Nxe3 {[%emt 0:01:40]} Rf8 {[%emt 0:01:00]} 39. Nd5 {[%emt 0:01:01]} Rf7 {[%emt 0:00:40]} 40. Rc6 {[%emt 0:01:02]} Kg7 {[%emt 0:00:46]} 41. h5 {[%emt 0:00:30]} Rd7 {[%emt 0:02:44]} 42. Ne3 {[%emt 0:02:59]} f4 {[%emt 0:00:57]} 43. Nf5+ {[%emt 0:01:00]} Kf8 {[%emt 0:00:11]} 44. Rc2 {[%emt 0:04:45]} fxg3+ {[%emt 0:01:32]} 45. Nxg3 {[%emt 0:01:51]} Rd4 {[%emt 0:01:27]} 46. a3 {[%emt 0:01:22]} Rd3 {[%emt 0:00:01]} 47. Ra2 {[%emt 0:02:48]} e3 {[%emt 0:00:18]} 48. Re2 {[%emt 0:05:36]} Bxg3+ {[%emt 0:04:53]} 49. Kxg3 {[%emt 0:00:25]} exf2+ {[%emt 0:01:51]} 50. Kxf2 {[%emt 0:00:09]} Rxa3 {[%emt 0:00:01]} 51. Rc2 {[%emt 0:01:50]} Rh3 {[%emt 0:01:33]} 52. Rxc7 {[%emt 0:00:29]} Rxh5 {[%emt 0:00:04]} 53. Rb7 {[%emt 0:00:43]} Rb5 {[%emt 0:00:12]} 54. Ra7 {[%emt 0:00:40]} Rxb4 {[%emt 0:00:20]} 55. Rxa6 {[%emt 0:00:08]} Ke7 {[%emt 0:00:07]} 56. Ke3 {[%emt 0:02:07]} Kd6 {[%emt 0:00:24]} 57. Ra8 {[%emt 0:00:16]} Kc5 {[%emt 0:00:21]} 58. Rc8+ {[%emt 0:00:39]} Kb5 {[%emt 0:00:07]} 59. Rh8 {[%emt 0:00:21]} Rh4 {[%emt 0:00:08]} 60. Kd3 {[%emt 0:00:28]} Kb4 {[%emt 0:00:08]} 61. Rb8 {[%emt 0:01:00]} b5 {[%emt 0:00:05]} 62. Kc2 {[%emt 0:00:30]} Rh2+ {[%emt 0:00:04]} 63. Kc1 {[%emt 0:00:18]} Kc3 {[%emt 0:01:00]} 64. Rc8+ {[%emt 0:00:10]} Kb3 {[%emt 0:00:04]} 65. Rb8 {[%emt 0:00:11]} b4 {[%emt 0:00:12]} 66. Rf8 {[%emt 0:00:21]} Rh1+ {[%emt 0:00:13]} 67. Kd2 {[%emt 0:00:05]} Kb2 {[%emt 0:00:08]} 68. Rc8 {[%emt 0:00:30]} b3 {[%emt 0:00:08]} 69. Kd3 {[%emt 0:00:23]} Rd1+ {[%emt 0:01:40]} 70. Ke2 {[%emt 0:00:12]} Rd5 {[%emt 0:00:15]} 71. Ke1 {[%emt 0:00:34]} Kb1 {[%emt 0:00:06]} 72. Rb8 {[%emt 0:00:21]} b2 {[%emt 0:00:04]} 0-1

[Event "Slovakia Chess Open 2024"]
[Site "Modra"]
[Date "2024.03.03"]
[Round "4.5"]
[White "Galla, Richard"]
[Black "Loffay, Pavol"]
[Result "1-0"]
[ECO "A83"]
[WhiteElo "1975"]
[BlackElo "1753"]
[Annotator "RC"]
[PlyCount "57"]
[EventDate "2024.02.29"]
[EventType "swiss"]
[EventCountry "SVK"]
[SourceTitle "playchess.com"]
[Source "ChessBase"]
[SourceQuality "1"]
[TimeControl "5400+30"]

1. d4 {[%emt 0:00:33]} f5 {[%emt 0:00:11]} 2. e4 {[%emt 0:01:18]} fxe4 {[%emt 0:00:35]} 3. Nc3 {[%emt 0:00:16]} Nf6 {[%emt 0:00:06]} 4. Bg5 {[%emt 0:00:28]} e6 {[%emt 0:01:31]} 5. Nxe4 {[%emt 0:00:26]} Be7 {[%emt 0:00:08]} 6. Bxf6 {[%emt 0:00:07]} Bxf6 {[%emt 0:00:07]} 7. c3 {[%emt 0:00:29]} b6 {[%emt 0:01:22]} 8. Bd3 {[%emt 0:05:06]} Bb7 {[%emt 0:01:17]} 9. Qh5+ {[%emt 0:01:46]} g6 {[%emt 0:13:29]} 10. Qf3 {[%emt 0:02:12]} Bxe4 {[%emt 0:01:45]} 11. Qxe4 {[%emt 0:01:01]} c6 {[%emt 0:02:43]} 12. Nf3 {[%emt 0:02:13]} Qe7 {[%emt 0:01:59]} 13. O-O-O {[%emt 0:01:56]} d5 {[%emt 0:08:09]} 14. Qe2 {[%emt 0:01:20]} O-O {[%emt 0:03:17]} 15. Rde1 {[%emt 0:01:12]} Re8 {[%emt 0:00:20]} 16. h4 {[%emt 0:01:11]} Nd7 {[%emt 0:03:14]} 17. h5 {[%emt 0:13:22]} Qg7 {[%emt 0:07:22]} 18. hxg6 {[%emt 0:04:03]} hxg6 {[%emt 0:00:08]} 19. g4 {[%emt 0:10:07]} e5 {[%emt 0:16:48]} 20. g5 {[%emt 0:02:25]} e4 {[%emt 0:00:49]} 21. gxf6 {[%emt 0:00:30]} Nxf6 {[%emt 0:01:01]} 22. Ne5 {[%emt 0:01:01]} exd3 {[%emt 0:01:07]} 23. Qxd3 {[%emt 0:00:05]} Ne4 {[%emt 0:02:22]} 24. Rhg1 {[%emt 0:03:47]} Re6 {[%emt 0:05:58]} 25. f3 {[%emt 0:02:54]} Nc5 {[%emt 0:06:25]} 26. dxc5 {[%emt 0:03:14]} Rxe5 {[%emt 0:06:51]} 27. Rxe5 {[%emt 0:00:13]} Qxe5 {[%emt 0:00:08]} 28. Qxg6+ {[%emt 0:00:19]} Kf8 {[%emt 0:00:10]} 29. Qg8+ {[%emt 0:00:31]} 1-0

[Event "Slovakia Chess Open 2024"]
[Site "Modra"]
[Date "2024.03.03"]
[Round "4.6"]
[White "Pisarcik, Richard"]
[Black "Mruskovic, Radoslav"]
[Result "0-1"]
[ECO "B07"]
[WhiteElo "1855"]
[BlackElo "1933"]
[Annotator "RC"]
[PlyCount "92"]
[EventDate "2024.02.29"]
[EventType "swiss"]
[EventCountry "SVK"]
[SourceTitle "playchess.com"]
[Source "ChessBase"]
[SourceQuality "1"]
[TimeControl "5400+30"]

1. e4 {[%emt 0:00:18]} d6 {[%emt 0:00:25]} 2. d4 {[%emt 0:00:04]} g6 {[%emt 0:00:06]} 3. Nc3 {[%emt 0:00:17]} Bg7 {[%emt 0:00:05]} 4. Be2 {[%emt 0:00:16]} Nf6 {[%emt 0:00:11]} 5. g4 {[%emt 0:00:05]} b6 {[%emt 0:03:25]} 6. g5 {[%emt 0:01:39]} Nfd7 {[%emt 0:00:18]} 7. Be3 {[%emt 0:02:46]} Bb7 {[%emt 0:02:39]} 8. f3 {[%emt 0:03:32]} c5 {[%emt 0:03:01]} 9. Qd2 {[%emt 0:06:48]} Nc6 {[%emt 0:01:57]} 10. d5 {[%emt 0:01:01]} Nd4 {[%emt 0:00:22]} 11. Bxd4 {[%emt 0:00:56]} Bxd4 {[%emt 0:01:06]} 12. f4 {[%emt 0:03:05]} a6 {[%emt 0:12:38]} 13. Nf3 {[%emt 0:06:59]} Bg7 {[%emt 0:00:15]} 14. O-O-O {[%emt 0:00:46]} b5 {[%emt 0:00:18]} 15. Rde1 {[%emt 0:01:56]} Qa5 {[%emt 0:04:26]} 16. e5 {[%emt 0:06:35]} b4 {[%emt 0:03:22]} 17. Nb1 {[%emt 0:20:05]} dxe5 {[%emt 0:06:44]} 18. fxe5 {[%emt 0:01:39]} Qxa2 {[%emt 0:01:49]} 19. Qf4 {[%emt 0:03:45]} Bxd5 {[%emt 0:03:17]} 20. Rhf1 {[%emt 0:04:16]} O-O {[%emt 0:01:31]} 21. h4 {[%emt 0:01:01]} Nb6 {[%emt 0:02:36]} 22. h5 {[%emt 0:03:38]} Na4 {[%emt 0:02:32]} 23. Kd2 {[%emt 0:02:42]} Rad8 {[%emt 0:04:30]} 24. Ke3 {[%emt 0:00:29]} Qxb2 {[%emt 0:01:36]} 25. Rc1 {[%emt 0:02:11]} Bxf3 {[%emt 0:01:03]} 26. Kxf3 {[%emt 0:01:51]} Qxe5 {[%emt 0:06:45]} 27. Qxe5 {[%emt 0:04:32]} Bxe5 {[%emt 0:00:13]} 28. Bxa6 {[%emt 0:00:05]} Rd4 {[%emt 0:01:18]} 29. Rfe1 {[%emt 0:01:28]} f6 {[%emt 0:00:40]} 30. Kg2 {[%emt 0:01:25]} Rg4+ {[%emt 0:00:23]} 31. Kf3 {[%emt 0:01:21]} Rxg5 {[%emt 0:00:30]} 32. hxg6 {[%emt 0:00:20]} hxg6 {[%emt 0:00:19]} 33. Rh1 {[%emt 0:00:27]} Rg3+ {[%emt 0:01:21]} 34. Kf2 {[%emt 0:01:37]} Nc3 {[%emt 0:01:32]} 35. Nxc3 {[%emt 0:02:05]} Rxc3 {[%emt 0:00:08]} 36. Ke2 {[%emt 0:00:44]} Bf4 {[%emt 0:01:30]} 37. Rcg1 {[%emt 0:01:09]} Rxc2+ {[%emt 0:00:46]} 38. Kf3 {[%emt 0:00:08]} Bg5 {[%emt 0:00:32]} 39. Ke4 {[%emt 0:00:51]} Rd8 {[%emt 0:00:36]} 40. Rd1 {[%emt 0:01:58]} Rxd1 {[%emt 0:02:30]} 41. Rxd1 {[%emt 0:00:10]} Rd2 {[%emt 0:00:28]} 42. Ra1 {[%emt 0:01:12]} Rd4+ {[%emt 0:00:45]} 43. Kf3 {[%emt 0:01:06]} c4 {[%emt 0:00:27]} 44. Ra4 {[%emt 0:01:01]} c3 {[%emt 0:00:29]} 45. Bc8 {[%emt 0:01:25]} Kf7 {[%emt 0:01:23]} 46. Ra2 {[%emt 0:01:06]} b3 {[%emt 0:00:16]} 0-1

[Event "Slovakia Chess Open 2024"]
[Site "Modra"]
[Date "2024.03.03"]
[Round "4.7"]
[White "Palka, Miroslav"]
[Black "Melih, Mario"]
[Result "0-1"]
[ECO "A23"]
[WhiteElo "1780"]
[BlackElo "1930"]
[Annotator "RC"]
[PlyCount "42"]
[EventDate "2024.02.29"]
[EventType "swiss"]
[EventCountry "SVK"]
[SourceTitle "playchess.com"]
[Source "ChessBase"]
[SourceQuality "1"]
[TimeControl "5400+30"]

1. c4 {[%emt 0:00:11]} e5 {[%emt 0:00:19]} 2. Nc3 {[%emt 0:00:50]} Nf6 {[%emt 0:00:23]} 3. g3 {[%emt 0:01:52]} c6 {[%emt 0:00:41]} 4. Bg2 {[%emt 0:00:06]} d5 {[%emt 0:01:12]} 5. cxd5 {[%emt 0:03:05]} cxd5 {[%emt 0:00:14]} 6. d4 {[%emt 0:00:24]} e4 {[%emt 0:02:34]} 7. f3 {[%emt 0:01:25]} exf3 {[%emt 0:06:09]} 8. Nxf3 {[%emt 0:00:45]} Nc6 {[%emt 0:00:16]} 9. O-O {[%emt 0:00:16]} Be6 {[%emt 0:02:19]} 10. Re1 {[%emt 0:07:36]} Be7 {[%emt 0:00:57]} 11. e4 {[%emt 0:00:53]} dxe4 {[%emt 0:01:24]} 12. Nxe4 {[%emt 0:00:37]} O-O {[%emt 0:01:03]} 13. Nc3 {[%emt 0:03:17]} Rc8 {[%emt 0:05:55]} 14. Bg5 {[%emt 0:07:19]} h6 {[%emt 0:03:24]} 15. Be3 {[%emt 0:01:23]} Nd5 {[%emt 0:05:09]} 16. Nxd5 {[%emt 0:02:00]} Bxd5 {[%emt 0:00:06]} 17. a3 {[%emt 0:01:43]} Bf6 {[%emt 0:03:23]} 18. Bf2 {[%emt 0:04:57]} Qb6 {[%emt 0:19:24]} 19. Qa4 {[%emt 0:07:18]} Bxf3 {[%emt 0:01:55]} 20. Bxf3 {[%emt 0:03:12]} Bxd4 {[%emt 0:00:30]} 21. Bxd4 {[%emt 0:00:30]} Nxd4 {[%emt 0:00:07]} 0-1

[Event "Slovakia Chess Open 2024"]
[Site "Modra"]
[Date "2024.03.03"]
[Round "4.8"]
[White "Novomeska, Karin"]
[Black "Pietrucha, Jaroslaw"]
[Result "1-0"]
[ECO "E07"]
[WhiteElo "1929"]
[BlackElo "1781"]
[Annotator "RC"]
[PlyCount "85"]
[EventDate "2024.02.29"]
[EventType "swiss"]
[EventCountry "SVK"]
[SourceTitle "playchess.com"]
[Source "ChessBase"]
[SourceQuality "1"]
[TimeControl "5400+30"]

1. d4 {[%emt 0:00:20]} d5 {[%emt 0:05:02]} 2. c4 {[%emt 0:00:11]} e6 {[%emt 0:01:01]} 3. Nc3 {[%emt 0:00:24]} Nf6 {[%emt 0:00:47]} 4. Nf3 {[%emt 0:00:36]} Be7 {[%emt 0:01:39]} 5. g3 {[%emt 0:01:15]} O-O {[%emt 0:00:50]} 6. Bg2 {[%emt 0:00:31]} Nbd7 {[%emt 0:08:01]} 7. O-O {[%emt 0:01:18]} b6 {[%emt 0:00:42]} 8. b3 {[%emt 0:02:18]} Bb7 {[%emt 0:00:42]} 9. Qd3 {[%emt 0:05:01]} c5 {[%emt 0:02:13]} 10. cxd5 {[%emt 0:09:56]} Nxd5 {[%emt 0:02:49]} 11. Nxd5 {[%emt 0:01:36]} Bxd5 {[%emt 0:01:37]} 12. Bb2 {[%emt 0:05:52]} cxd4 {[%emt 0:05:09]} 13. Qxd4 {[%emt 0:13:14]} Bf6 {[%emt 0:05:37]} 14. Qd2 {[%emt 0:00:41]} Rc8 {[%emt 0:05:56]} 15. Rfd1 {[%emt 0:02:04]} Bxb2 {[%emt 0:01:38]} 16. Qxb2 {[%emt 0:00:14]} Qe7 {[%emt 0:01:25]} 17. Rd4 {[%emt 0:01:49]} Bxf3 {[%emt 0:06:18]} 18. Bxf3 {[%emt 0:04:38]} Nf6 {[%emt 0:00:54]} 19. Rad1 {[%emt 0:02:11]} Rfd8 {[%emt 0:01:21]} 20. Qd2 {[%emt 0:06:51]} Rxd4 {[%emt 0:01:27]} 21. Qxd4 {[%emt 0:00:08]} Kf8 {[%emt 0:01:50]} 22. Qd3 {[%emt 0:05:22]} Qc7 {[%emt 0:02:38]} 23. Kg2 {[%emt 0:06:36]} Ke7 {[%emt 0:01:47]} 24. Qa6 {[%emt 0:01:11]} Kf8 {[%emt 0:03:07]} 25. Rd4 {[%emt 0:01:35]} Re8 {[%emt 0:11:07]} 26. Rc4 {[%emt 0:07:49]} Qb8 {[%emt 0:05:02]} 27. Rc6 {[%emt 0:02:44]} Nd7 {[%emt 0:03:10]} 28. Qa3+ {[%emt 0:02:08]} Kg8 {[%emt 0:00:53]} 29. Rc3 {[%emt 0:02:03]} Nf6 {[%emt 0:01:14]} 30. Qc1 {[%emt 0:00:30]} Qe5 {[%emt 0:02:52]} 31. Rc7 {[%emt 0:01:01]} Qa5 {[%emt 0:00:34]} 32. a4 {[%emt 0:01:16]} h6 {[%emt 0:02:05]} 33. Qc6 {[%emt 0:01:01]} Qb4 {[%emt 0:03:41]} 34. Rxa7 {[%emt 0:06:42]} Qxb3 {[%emt 0:01:22]} 35. Rb7 {[%emt 0:00:45]} e5 {[%emt 0:02:22]} 36. Rxb6 {[%emt 0:00:43]} Qa2 {[%emt 0:01:05]} 37. Qb5 {[%emt 0:03:49]} Re7 {[%emt 0:01:32]} 38. e3 {[%emt 0:00:30]} e4 {[%emt 0:01:38]} 39. Be2 {[%emt 0:01:36]} Nd5 {[%emt 0:03:01]} 40. Rb8+ {[%emt 0:00:59]} Kh7 {[%emt 0:00:20]} 41. Rd8 {[%emt 0:00:52]} Nc3 {[%emt 0:01:08]} 42. Qf5+ {[%emt 0:00:11]} g6 {[%emt 0:01:57]} 43. Qf6 {[%emt 0:00:09]} 1-0

[Event "Slovakia Chess Open 2024"]
[Site "Modra"]
[Date "2024.03.03"]
[Round "4.9"]
[White "Hitka, Dominik"]
[Black "Smetana, Peter"]
[Result "0-1"]
[ECO "A37"]
[WhiteElo "1709"]
[BlackElo "1993"]
[Annotator "RC"]
[PlyCount "59"]
[EventDate "2024.02.29"]
[EventType "swiss"]
[EventCountry "SVK"]
[SourceTitle "playchess.com"]
[Source "ChessBase"]
[SourceQuality "1"]
[TimeControl "5400+30"]

1. Nf3 {[%emt 0:00:03]} g6 {[%emt 0:00:26]} 2. c4 {[%emt 0:00:09]} Bg7 {[%emt 0:00:09]} 3. Nc3 {[%emt 0:00:18]} c5 {[%emt 0:00:11]} 4. g3 {[%emt 0:00:27]} Nc6 {[%emt 0:00:08]} 5. Bg2 {[%emt 0:00:26]} d6 {[%emt 0:00:08]} 6. O-O {[%emt 0:00:18]} Bf5 {[%emt 0:00:16]} 7. d3 {[%emt 0:02:05]} Qd7 {[%emt 0:04:06]} 8. Re1 {[%emt 0:01:16]} e5 {[%emt 0:00:54]} 9. Rb1 {[%emt 0:08:47]} Nge7 {[%emt 0:02:07]} 10. a3 {[%emt 0:03:05]} a5 {[%emt 0:03:45]} 11. Bd2 {[%emt 0:00:30]} O-O {[%emt 0:02:12]} 12. Qc1 {[%emt 0:00:41]} Bg4 {[%emt 0:23:01]} 13. Bh6 {[%emt 0:06:53]} Bxf3 {[%emt 0:00:51]} 14. Bxg7 {[%emt 0:02:49]} Kxg7 {[%emt 0:00:17]} 15. exf3 {[%emt 0:01:43]} Qf5 {[%emt 0:01:51]} 16. Qe3 {[%emt 0:02:21]} Nd4 {[%emt 0:00:47]} 17. Qe4 {[%emt 0:00:46]} Qxe4 {[%emt 0:07:24]} 18. fxe4 {[%emt 0:00:32]} Rab8 {[%emt 0:00:59]} 19. Ne2 {[%emt 0:01:40]} b5 {[%emt 0:01:52]} 20. b3 {[%emt 0:00:20]} bxc4 {[%emt 0:00:25]} 21. dxc4 {[%emt 0:01:12]} Ne6 {[%emt 0:01:04]} 22. Rb2 {[%emt 0:00:15]} Rfd8 {[%emt 0:00:20]} 23. f4 {[%emt 0:01:32]} Nd4 {[%emt 0:01:29]} 24. Rd2 {[%emt 0:02:18]} Ndc6 {[%emt 0:03:48]} 25. Bh3 {[%emt 0:00:51]} f6 {[%emt 0:01:26]} 26. Rb1 {[%emt 0:00:31]} Rb6 {[%emt 0:01:42]} 27. b4 {[%emt 0:05:45]} axb4 {[%emt 0:01:34]} 28. axb4 {[%emt 0:04:11]} Rxb4 {[%emt 0:01:51]} 29. Ra1 {[%emt 0:00:19]} Nd4 {[%emt 0:00:41]} 30. Ra7 {[%emt 0:00:24]} 0-1

[Event "Slovakia Chess Open 2024"]
[Site "Modra"]
[Date "2024.03.03"]
[Round "4.10"]
[White "Visvader, Kristof"]
[Black "Hasala, Richard"]
[Result "0-1"]
[ECO "B45"]
[WhiteElo "1696"]
[BlackElo "1935"]
[Annotator "RC"]
[PlyCount "62"]
[EventDate "2024.02.29"]
[EventType "swiss"]
[EventCountry "SVK"]
[SourceTitle "playchess.com"]
[Source "ChessBase"]
[SourceQuality "1"]
[TimeControl "5400+30"]

1. e4 {[%emt 0:00:16]} c5 {[%emt 0:02:21]} 2. Nf3 {[%emt 0:00:10]} e6 {[%emt 0:00:05]} 3. d4 {[%emt 0:00:05]} cxd4 {[%emt 0:00:05]} 4. Nxd4 {[%emt 0:00:03]} Nf6 {[%emt 0:00:06]} 5. Nc3 {[%emt 0:00:06]} Nc6 {[%emt 0:00:04]} 6. Be3 {[%emt 0:00:41]} Be7 {[%emt 0:01:08]} 7. Bc4 {[%emt 0:00:23]} O-O {[%emt 0:00:17]} 8. f3 {[%emt 0:01:17]} a6 {[%emt 0:05:26]} 9. a4 {[%emt 0:05:24]} d5 {[%emt 0:02:07]} 10. exd5 {[%emt 0:02:24]} exd5 {[%emt 0:00:08]} 11. Bb3 {[%emt 0:02:24]} Re8 {[%emt 0:00:21]} 12. O-O {[%emt 0:05:19]} Bc5 {[%emt 0:06:43]} 13. Bf2 {[%emt 0:07:13]} Qb6 {[%emt 0:01:25]} 14. Nce2 {[%emt 0:06:04]} Na5 {[%emt 0:03:21]} 15. Qd2 {[%emt 0:04:32]} Bd7 {[%emt 0:04:24]} 16. Nc3 {[%emt 0:02:27]} Bc6 {[%emt 0:01:37]} 17. Nxc6 {[%emt 0:13:28]} Nxb3 {[%emt 0:09:41]} 18. cxb3 {[%emt 0:10:07]} bxc6 {[%emt 0:00:17]} 19. Bxc5 {[%emt 0:01:26]} Qxc5+ {[%emt 0:00:18]} 20. Qf2 {[%emt 0:00:09]} Qxf2+ {[%emt 0:00:30]} 21. Rxf2 {[%emt 0:00:06]} Rab8 {[%emt 0:00:06]} 22. Ra3 {[%emt 0:00:43]} d4 {[%emt 0:00:18]} 23. Na2 {[%emt 0:00:57]} c5 {[%emt 0:00:17]} 24. b4 {[%emt 0:01:35]} c4 {[%emt 0:01:50]} 25. Rc2 {[%emt 0:00:37]} d3 {[%emt 0:01:09]} 26. Rd2 {[%emt 0:01:20]} Nd5 {[%emt 0:01:03]} 27. Kf2 {[%emt 0:05:47]} Nxb4 {[%emt 0:08:36]} 28. Nxb4 {[%emt 0:02:23]} Rxb4 {[%emt 0:00:06]} 29. b3 {[%emt 0:00:14]} cxb3 {[%emt 0:00:06]} 30. Rxd3 {[%emt 0:00:13]} b2 {[%emt 0:00:03]} 31. Rdb3 {[%emt 0:01:35]} b1=Q {[%emt 0:00:07]} 0-1

[Event "Slovakia Chess Open 2024"]
[Site "Modra"]
[Date "2024.03.03"]
[Round "4.11"]
[White "Chojnacki, Kevin"]
[Black "Petrik, Matus"]
[Result "1/2-1/2"]
[ECO "A09"]
[WhiteElo "1672"]
[BlackElo "1812"]
[Annotator "NA RC"]
[PlyCount "69"]
[EventDate "2024.02.29"]
[EventType "swiss"]
[EventCountry "SVK"]
[SourceTitle "playchess.com"]
[Source "ChessBase"]
[SourceQuality "1"]
[TimeControl "5400+30"]

1. Nf3 {[%emt 0:00:06]} d5 {[%emt 0:13:52]} 2. c4 {[%emt 0:00:18]} d4 {[%emt 0:01:29]} 3. e3 {[%emt 0:00:44]} Nc6 {[%emt 0:01:34]} 4. exd4 {[%emt 0:00:39]} Nxd4 {[%emt 0:00:07]} 5. Nxd4 {[%emt 0:00:04]} Qxd4 {[%emt 0:00:01]} 6. d3 {[%emt 0:00:39] A09: Réti Opening: 1 Nf3 d5 2 c4.} Bg4 {[%emt 0:00:33]} 7. Qa4+ {[%emt 0:02:18]} Bd7 {[%emt 0:00:15]} 8. Qc2 {[%emt 0:01:19]} Bc6 {[%emt 0:00:59]} 9. Be3 {[%emt 0:02:32]} Qd7 {[%emt 0:00:08]} 10. Nc3 {[%emt 0:01:22]} Nf6 {[%emt 0:00:15]} 11. d4 {[%emt 0:07:56]} e6 {[%emt 0:00:34]} 12. a3 {[%emt 0:01:22]} g6 {[%emt 0:06:29]} 13. b4 {[%emt 0:02:55]} b6 {[%emt 0:00:06]} 14. f3 {[%emt 0:04:45]} Bg7 {[%emt 0:00:52]} 15. Be2 {[%emt 0:02:47]} O-O {[%emt 0:00:10]} 16. O-O {[%emt 0:00:39]} Rad8 {[%emt 0:00:06]} 17. Rad1 {[%emt 0:04:47]} Qe7 {[%emt 0:00:15]} 18. Rd2 {[%emt 0:15:25]} Bb7 {[%emt 0:08:12]} 19. Rfd1 {[%emt 0:00:44]} Rd7 {[%emt 0:01:45]} 20. Bg5 {[%emt 0:03:54]} Qe8 {[%emt 0:08:27]} 21. Kh1 {[%emt 0:04:56]} Qa8 {[%emt 0:00:45]} 22. Be3 {[%emt 0:11:21]} Rfd8 {[%emt 0:01:48]} 23. Kg1 {[%emt 0:00:14]} Kh8 {[%emt 0:03:36]} 24. Bg5 {[%emt 0:01:49]} h6 {[%emt 0:01:33]} 25. Be3 {[%emt 0:00:47]} Kh7 {[%emt 0:02:20]} 26. Bf2 {[%emt 0:01:07]} Ng8 {[%emt 0:01:03]} 27. Bd3 {[%emt 0:01:25]} Kh8 {[%emt 0:06:29]} 28. Be4 {[%emt 0:01:13]} Bf6 {[%emt 0:01:26]} 29. Bxb7 {[%emt 0:00:58]} Qxb7 {[%emt 0:00:06]} 30. Ne4 {[%emt 0:00:02]} Be7 {[%emt 0:00:37]} 31. Qc3 {[%emt 0:01:55]} Kh7 {[%emt 0:00:10]} 32. c5 {[%emt 0:00:48]} Qc6 {[%emt 0:00:29]} 33. Qb3 {[%emt 0:04:23]} b5 {[%emt 0:00:44]} 34. Nc3 {[%emt 0:00:45]} Bf6 {[%emt 0:01:14]} 35. Ne4 $11 {[%emt 0:01:01]} 1/2-1/2